Cogmind - Beta 15 *** ADVENTURER MODE // 2025.05.23 @ 15:23:51 Player: Jack Result: Destroyed by as-61103 with Assembled Maul Performance ------------- Evolutions (0) 0 Regions Visited (2) 400 Robots Destroyed (0) 0 Value Destroyed (0) 0 Prototype IDs (0) 0 Alien Tech Used (0) 0 Bonus (39) 39 TOTAL SCORE: 439 Bonus ------- Follower Combat Kills 39 Cogmind --------- Core Integrity 0/250 Matter 300/300 Energy 89/100 System Corruption 4% Temperature Cool (25) Movement Core (50) Location -10/Mines Parts ------- > --- POWER (1) -------- (None) > --- PROPULSION (2) --- (None) > --- UTILITY (2) ------ (None) > --- WEAPON (2) ------- (None) > --- INVENTORY (5) ---- (None) Peak State ------------ > --- POWER ------------ (None) > --- PROPULSION ------- (None) > --- UTILITY ---------- (None) > --- WEAPON ----------- Small Laser Assault Rifle > --- INVENTORY -------- Medium Laser [Rating: 2] Favorites ----------- Power None Propulsion None Utility None Weapon Assault Rifle Energy Gun Small Laser Ballistic Gun Assault Rifle Build | -11 -10 -10 ------- Run | Yrd Mat Min Slots Evolved . | . . . Power . | . . . Propulsion . | . . . Utility . | . . . Weapon . | . . . Parts Attached 3 | . . 3 Power . | . . . Engine . | . . . Core . | . . . Reactor . | . . . Propulsion . | . . . Treads . | . . . Leg . | . . . Wheel . | . . . Hover . | . . . Flight . | . . . Utility . | . . . Device . | . . . Storage . | . . . Processor . | . . . Hackware . | . . . Protection . | . . . Artifact . | . . . Weapon 3 | . . 3 Energy Gun 2 | . . 2 Energy Cannon . | . . . Ballistic Gun 1 | . . 1 Ballistic Cannon . | . . . Launcher . | . . . Special Weapon . | . . . Impact Weapon . | . . . Slashing Weapon . | . . . Piercing Weapon . | . . . Special Melee Weapon . | . . . Unidentified Prototypes . | . . . Parts Lost 3 | . . 3 Power . | . . . Propulsion . | . . . Utility . | . . . Weapon 3 | . . 3 Highest Loss Streak 2 | . . 2 To Critical Strikes . | . . . Average Backups 1 | . 3 1 Power . | . . . Propulsion . | . . . Utility . | . . . Weapon 1 | . 3 1 Tool/Special . | . . . Unused Backups . | . . . Power . | . . . Propulsion . | . . . Utility . | . . . Weapon . | . . . Tool/Special . | . . . Average Slot Usage (%) 11 | . . 16 Energy Gun 6 | . . 8 Ballistic Gun 5 | . . 7 Peak Build Rating 2 | . . 2 Average Rating . | . . 1 On Entrance . | . . . Naked Turns 279 | . 139 140 Heaviest Build 3 | . . 3 Greatest Support 3 | 3 3 3 Greatest Overweight (x) . | . . . Average Overweight (x) . | . . . Largest Inventory Capacity 5 | 5 5 5 Average Capacity 5 | 5 5 5 Most Carried 3 | 3 3 3 Average Carried 1 | . 3 1 Final Capacity 5 | 5 5 5 Final Carried 3 | 3 3 . Class Distribution -------------------- 100% | Mutant Dominant Class ---------------- Mutant | -10/Materials Mutant | -10/Mines Resources | -11 -10 -10 ----------- Run | Yrd Mat Min Matter Collected 225 | . 56 169 Remotely . | . . . Salvage Created 53 | . . 53 Parts . | . . . Haulers Intercepted . | . . . Recyclers Shooed . | . . . Parts Field Recycled . | . . . Retrieved Matter . | . . . Parts Self-Destructed . | . . . Prevented . | . . . Kills | -11 -10 -10 ------- Run | Yrd Mat Min Combat Hostiles Destroyed 4 | . . 4 Guns 4 | . . 4 Classes Destroyed 1 | . . 1 Assembled 4 | . . 4 Best Kill Streak 2 | . . 2 Combat Bots Only 2 | . . 2 Max Kills in Single Turn 1 | . . 1 Gunslinging . | . . . Exploded . | . . . Melee . | . . . Uniques/NPCs Destroyed . | . . . Combat | -11 -10 -10 -------- Run | Yrd Mat Min Hostile Shots Fired 33 | . . 33 Missed 9 | . . 9 Hits 24 | . . 24 Melee 8 | . . 8 Projectile 16 | . . 16 AOE 4 | . . 4 Damage Taken 495 | . 56 439 Core 255 | . 56 199 Absorbed by Shields . | . . . Ignored by Resistances 130 | . 13 117 Core Remaining (%) 100 | 100 . . Volleys Fired 20 | . . 20 Largest 2 | . . 2 Hottest 60 | . . 60 Shots Fired 28 | . . 28 Gun 28 | . . 28 Cannon . | . . . Launcher . | . . . Special . | . . . Kinetic 9 | . . 9 Thermal 19 | . . 19 Explosive . | . . . Electromagnetic . | . . . Robot Hit Streak 8 | . . 8 Robot Miss Streak 1 | . . 1 Penetration Max . | . . . Secondary Targets . | . . . Shots Hit Robots 21 | . . 21 Core Hits 12 | . . 12 Critical Kills 1 | . . 1 Critical Parts Destroyed . | . . . Critical Strikes 2 | . . 2 Burn 1 | . . 1 Destroy 1 | . . 1 Melee Attacks . | . . . Impact . | . . . Slashing . | . . . Piercing . | . . . Sneak Attacks . | . . . Combat Hostiles . | . . . Follow-up Attacks . | . . . Damage Inflicted 308 | . 18 290 Guns 258 | . . 258 Cannons . | . . . Explosions . | . . . Melee . | . . . Ramming 50 | . 18 32 Kinetic 79 | . . 79 Thermal 179 | . . 179 Explosive . | . . . Electromagnetic . | . . . Impact . | . . . Slashing . | . . . Piercing . | . . . Highest Corruption 3 | . . 3 Average Corruption 3 | . . 3 Corruption Purged . | . . . Corruption Blocked . | . . . Overload Shots . | . . . Overflow Damage . | . . . Projectiles . | . . . Explosions . | . . . Melee . | . . . Knockbacks . | . . . Impact . | . . . Kinetic . | . . . Secondary . | . . . Self-Inflicted Damage 23 | . 8 15 Shots . | . . . Rammed 10 | . 4 6 Targets Rammed 10 | . 4 6 Kicked . | . . . Crushed . | . . . Highest Temperature 25 | . . 25 Average Temperature 22 | . . 22 Received Heat Transfer 100 | . . 100 Siege Activations . | . . . Martial Activations . | . . . Shielding Activations . | . . . Robots Disrupted . | . . . Combat Hostiles . | . . . Robots Corrupted . | . . . Combat Hostiles . | . . . Parts Fried . | . . . Impact Corruptions . | . . . Robots Melted . | . . . Combat Hostiles . | . . . Parts Melted . | . . . Heat Transferred 545 | . . 545 Parts Sabotaged . | . . . Parts Stolen . | . . . Parts Stripped . | . . . Power Chain Reactions . | . . . Alert | -11 -10 -10 ------- Run | Yrd Mat Min Maximum Alert Level . | . . . Low Security (%) 100 | 100 100 100 Level 1 . | . . . Level 2 . | . . . Level 3 . | . . . Level 4 . | . . . Level 5 . | . . . High Security . | . . . Max Security . | . . . Peak Influence 31 | . . 31 Initial . | . . . Average . | . . 1 Influence Increases 46 | . . 46 Destroy 0b10 Robot/C 20 | . . 20 Destroy Leader 10 | . . 10 Allied During Kill 1 | . . 1 Lose Combat Pursuer 15 | . . 15 Influence Decreases 46 | . . 46 Time Decay 26 | . . 26 Lost Ally 20 | . . 20 Squads Dispatched . | . . . Investigation . | . . . Extermination . | . . . Reinforcement . | . . . Assault . | . . . Garrison . | . . . Intercept . | . . . Searches Triggered . | . . . Construction Impeded . | . . . Haulers Reinforced . | . . . Active Scanning Responses . | . . . Cargo Convoy Interrupts . | . . . Stealth | -11 -10 -10 --------- Run | Yrd Mat Min Distress Signals 1 | . . 1 Communications Jammed . | . . . Distress Signals . | . . . Times Spotted 24 | . 2 22 Peak Tracking Total 12 | . 2 12 Tactical Retreats 4 | . . 4 Traps | -11 -10 -10 ------- Run | Yrd Mat Min Traps Triggered 3 | . 3 . Indirectly . | . . . Trap Hack Attempts . | . . . Triggered . | . . . Disarmed . | . . . Reprogrammed . | . . . Reused . | . . . Traps Extracted . | . . . Installed . | . . . Triggered . | . . . Machines | -11 -10 -10 ---------- Run | Yrd Mat Min Machines Disabled . | . . . Max in Single Turn . | . . . Machines Repaired . | . . . Machines Dismantled . | . . . Machines Sabotaged . | . . . Overloaded Fab Kills . | . . . Hacking | -11 -10 -10 --------- Run | Yrd Mat Min Machines Accessed . | . . . Terminals . | . . . Fabricators . | . . . Repair Stations . | . . . Recycling Units . | . . . Scanalyzers . | . . . Garrison Access . | . . . Total Hacks . | . . . Successful . | . . . Failed . | . . . Catastrophic . | . . . Database Lockouts . | . . . Manual . | . . . Terminals . | . . . Fabricators . | . . . Repair Stations . | . . . Recycling Units . | . . . Scanalyzers . | . . . Garrison Access . | . . . Terminal Hacks . | . . . Fabricator Hacks . | . . . Repair Station Hacks . | . . . Recycling Unit Hacks . | . . . Scanalyzer . | . . . Garrison Access Hacks . | . . . Unauthorized Hacks . | . . . Terminals . | . . . Fabricators . | . . . Repair Stations . | . . . Recycling Units . | . . . Scanalyzers . | . . . Garrison Access . | . . . Data Cores Recovered . | . . . Used . | . . . Hacking Detections . | . . . Full Trace Events . | . . . Feedback Events . | . . . Feedback Blocked . | . . . Robot Schematics Acquired . | . . . Robots Built . | . . . Authchips . | . . . Time . | . . . Total Robot Build Rating . | . . . Part Schematics Acquired . | . . . Parts Built . | . . . Authchips . | . . . Time . | . . . Total Part Build Rating . | . . . Parts Repaired . | . . . Time . | . . . Parts Recycled . | . . . Recycled Matter . | . . . Retrieved Matter . | . . . Retrieved Components . | . . . Parts Scanalyzed . | . . . Part Schematics Acquired . | . . . Parts Damaged . | . . . Bothacking | -11 -10 -10 ------------ Run | Yrd Mat Min Used RIF Installer . | . . . Robots Hacked . | . . . Non-combat . | . . . Combat . | . . . Robot Hacks Applied . | . . . Relay Couplers Released . | . . . Fabnet Peak Effective % . | . . . Robots Rewired . | . . . Allies Hacked . | . . . Hacks Repelled . | . . . Allies | -11 -10 -10 -------- Run | Yrd Mat Min Total Allies 1 | . . 1 Largest Group 1 | . . 1 Highest-Rated Group 31 | . . 31 Highest-Rated Ally 31 | . . 31 Total Orders . | . . . Ally Attacks 4 | . . 4 Total Damage 85 | . . 85 Kills 1 | . . 1 Allies Corrupted . | . . . Allies Melted . | . . . Intel | -11 -10 -10 ------- Run | Yrd Mat Min Active Infowar (turns) . | . . . Robot Analysis Total . | . . . Derelict Logs Recovered 2 | . . 2 Drone Launches . | . . . Drone Recoveries . | . . . Exploration | -11 -10 -10 ------------- Run | Yrd Mat Min Turns Passed 591 | 66 139 386 Spaces Moved 658 | 22 270 366 Core 658 | 22 270 366 Treads . | . . . Legs . | . . . Wheels . | . . . Hover . | . . . Flight . | . . . Fastest Speed 50 | 50 50 50 Average Speed 50 | 50 50 50 Slowest Speed 50 | 50 50 50 Overloaded Moves . | . . . Propulsion Burnouts . | . . . Robots Hopped . | . . . Potential Cave-ins . | . . . Cave-ins Triggered . | . . . Exploration Rate (%) 36 | 4 49 55 Regions Visited 2 Branch Regions 1 Pre-discovered Areas 1 | . . 1 Known Exits Taken . | . . . Unknown Exits Taken 2 | 1 1 . Scrap Searched 1 | . . 1 Spaces Dug . | . . . Terrain Destroyed . | . . . Melee . | . . . Projectile . | . . . AOE . | . . . Terrain Rammed . | . . . Walls Destroyed . | . . . Machines Disabled . | . . . Actions | -11 -10 -10 --------- Run | Yrd Mat Min Total 890 | 76 273 541 Wait 198 | 52 . 146 Move 656 | 21 269 366 Hop . | . . . Pick Up 3 | 3 . . Fast Attach . | . . . Attach 3 | . . 3 Detach . | . . . Swap . | . . . Drop . | . . . Fire 20 | . . 20 Melee . | . . . Ram 10 | . 4 6 Kick . | . . . Crush . | . . . Escape Stasis . | . . . Rewire . | . . . Trap . | . . . Miscellaneous . | . . . Route ------- -11/Scrapyard -10/Materials (discovered 2 exits: [*Mat] / [*Min]) -10/Mines (discovered 1 exit: [*Mat]) History --------- Turn | Location | Event 58 | -11/Scrapyard | Discovered new exit (range 16) 67 | -11/Scrapyard | Entered Materials 114 | -10/Materials | Discovered new exit (range 15) 203 | -10/Materials | Discovered new exit (range 7) 206 | -10/Materials | Entered Mines 233 | -10/Mines | Discovered new exit (range 7) 236 | -10/Mines | Received a Mining Laser from a helpful Derelict 241 | -10/Mines | Assembled infested the area 266 | -10/Mines | A weapon hastily lodged in a ceiling crevice suddenly fell to the ground 315 | -10/Mines | Build established: Mutant 322 | -10/Mines | Core integrity fell below 50% 541 | -10/Mines | Core integrity fell below 20% 551 | -10/Mines | Learned location of Zion (-7) 559 | -10/Mines | Learned Materials stockpile data 592 | -10/Mines | Destroyed by as-61103 with Assembled Maul Last Messages --------------- Assault Rifle destroyed. System corrupted by crushing effect (+3). Slammed into as-61103. Searching scrap... Found Sml. Matter Pod. Found Lgt. Treads. Found Structural Scanner. Found Lrg. Storage Unit. Found 69 Matter. Acquired derelict log, extracted data. World map updated: -7/Zion. Acquired derelict log, extracted data. Data stored: Materials stockpile data. Laser Drill disabled. as-25025 suffers critical hit (Burn). as-25025 destroyed. Acquired 10 matter. as-09862 destroyed. Med. Laser destroyed. System corrupted by crushing effect (+1). Map ----- +----------------------------------------------------+ | ??????????????????????????## ##??? | | ??????###???????###????#### #??? | | ??#### ##?????## #????# #??? | | ### #?????# #????# #??? | | ##???## #????#### ##??? | | ##??# #???????## ##???? | | ##?# ##????????## ###??? | | #?# #???????#### # ##?? | | ### ##?????## #?? | | ### #####?# #?? | | | = #####?# #### ##? | | %*% #????# !% #? | | ##! ###### ##### #?? | | ###### != * ####???# #?? | | ?????# *[###### ##??????# #?? | | ?????###=#????####???????## ######?? | | ???????#%#????????????????###??????? | | ???????#=#?????????????????????????? | | ! = ##!##########???????????###??? | | [%% %%% =!!%! #????????### ##?? | | = [ |!%*== #???????## #?? | | #####!=#???????# """ #?? | | ### ## ##???#!%#???????# """ #?? | | ??####?####????#! #????????# "" #?? | | ???????????????# #?????#### #?? | | ???????????????# #?????#@% ##?? | | ???????????????# #?????#a### ##??? | | ???????????????# #?????# #?####???? | | ???????????????# #?????# #????????? | | ???????????????# #?????# #????????? | | ???????????????# #?????# #????????? | | ???????????????# ##????# #????????? | | ???????????????# #????# #????????? | | ???????????????# ##???# #????????? | | ???????????????### ##### #????????? | | ?????????????????# #????????? | | ?????????????????## ######????????? | | ??????????????????# #?????????????? | | ??????????????????# #?????????????? | | ?????????????????? #?????????????? | | ????????????????? ?????????????? | | ???????????????? ?????????????? | | ??????????????? ????????????? | | ?????????????? ????????????? | | ?????????????? ## #???????????? | | ?????????????# #??###???????????? | | ?????????????# ?????????????????? | | ?????????????# #?????????????????? | | ?????????????? #??????????????????? | | ???????????????????????????????????? | +----------------------------------------------------+ Best States ------------- Heat Dissipation 25 Energy Generation 5 Energy Capacity 100 Matter Stores 300 Matter Capacity 300 Sight Range 16 Terrain Scan Density 10 Resistance: KI 20 Resistance: TH 20 Resistance: EX 20 Resistance: EM 20 Resistance: I 20 Resistance: S 20 Resistance: P 20 Evasion (%) 50 Offensive Hacking 10 Item Schematics ----------------- None Robot Schematics ------------------ None Fabricated ------------ Nothing Repaired ---------- Nothing Alien Tech Used ----------------- None Achievements -------------- None Challenges ------------ None Game ------ Seed PulseConstructFirepult Manual? 0 Play Time 00:06:41 Cumulative 189.5 hours Start 2025.05.23 @ 15:19:34 End 2025.05.23 @ 15:23:51 Sessions 1 Manual Loads 0 Difficulty Adventurer Special Mode None Game No. 189 Rogue 18 Adventurer 160 Explorer 11 Win Type - Total 48 Types 13/0/14/2/9/0/4/1/0/5 Lore% 47 Gallery% 47 Achievement% 67 Wizard Run 0 Options --------- Layout 0 ASCII 0 Keyboard 0 Movement Numpad Keybinds 0 Fullscreen 2 Font 12/Smallcaps Map View 83x54 Zoom Use 0% Tactical HUD 0 Map Filters NONE Filters NONE Steam X RUN: 93bcd2bd-7c2b-464d-b405-0ea6c77fa208